Cogmind - Beta 16 @@@ ROGUE MODE // 2025.12.03 @ 18:33:13 Player: Prakos Result: Self-destructed Performance ------------- Evolutions (1) 500 Regions Visited (3) 600 Robots Destroyed (7) 35 Value Destroyed (165) 165 Prototype IDs (0) 0 Alien Tech Used (0) 0 Bonus (0) 0 TOTAL SCORE: 1300 Bonus ------- None Cogmind --------- Core Integrity 142/400 Matter 285/300 Energy 55/160 System Corruption 0% Temperature Cool (13) Movement Core (200) Ox3 Location -9/Materials Parts ------- > --- POWER (1) -------- Light Nuclear Core > --- PROPULSION (3) --- (None) > --- UTILITY (3) ------ Small Storage Unit Melee Analysis Suite > --- WEAPON (2) ------- (None) > --- INVENTORY (8) ---- Light Nuclear Core Light Nuclear Core Large Storage Unit Melee Analysis Suite Melee Analysis Suite Peak State ------------ > --- POWER ------------ Light Nuclear Core > --- PROPULSION ------- Aluminum Leg > --- UTILITY ---------- Small Storage Unit Melee Analysis Suite Melee Analysis Suite > --- WEAPON ----------- (None) > --- INVENTORY -------- Light Nuclear Core Light Nuclear Core Light Nuclear Core Light Treads Light Treads Large Storage Unit [Rating: 12] Favorites ----------- Power Ion Engine Engine Ion Engine Power Core Light Nuclear Core Propulsion Aluminum Leg Treads Light Treads Leg Aluminum Leg Utility Small Storage Unit Device ECM Suite Storage Small Storage Unit Processor Melee Analysis Suite Weapon Assault Rifle Energy Gun Medium Laser Ballistic Gun Assault Rifle Build | -11 -10 -10 -9 ------- Run | Yrd Mat Min Mat Slots Evolved 2 | . . . 2 Power . | . . . . Propulsion 1 | . . . 1 Utility 1 | . . . 1 Weapon . | . . . . Parts Attached 15 | 6 . 1 8 Power 3 | 1 . . 2 Engine 1 | 1 . . . Core 2 | . . . 2 Reactor . | . . . . Propulsion 5 | 2 . 1 2 Treads 2 | . . . 2 Leg 3 | 2 . 1 . Wheel . | . . . . Hover . | . . . . Flight . | . . . . Utility 4 | 1 . . 3 Device 1 | . . . 1 Storage 1 | 1 . . . Processor 2 | . . . 2 Hackware . | . . . . Protection . | . . . . Artifact . | . . . . Weapon 3 | 2 . . 1 Energy Gun 2 | 1 . . 1 Energy Cannon . | . . . . Ballistic Gun 1 | 1 . . . Ballistic Cannon . | . . . . Launcher . | . . . . Special Weapon . | . . . . Impact Weapon . | . . . . Slashing Weapon . | . . . . Piercing Weapon . | . . . . Special Melee Weapon . | . . . . Unidentified Prototypes . | . . . . Parts Lost 11 | . . 5 6 Power 2 | . . 1 1 Propulsion 5 | . . 2 3 Utility 1 | . . . 1 Weapon 3 | . . 2 1 Highest Loss Streak 5 | . . 5 3 To Critical Strikes . | . . . . Average Backups 4 | . 2 3 5 Power 1 | . . . 2 Propulsion 1 | . 2 2 . Utility 1 | . . 1 2 Weapon . | . . . . Tool/Special . | . . . . Unused Backups 5 | . . . 5 Power 2 | . . . 2 Propulsion . | . . . . Utility 3 | . . . 3 Weapon . | . . . . Tool/Special . | . . . . Average Slot Usage (%) 54 | . 85 49 40 Engine 5 | . 14 8 . Core 2 | . . . 5 Treads 3 | . . . 6 Leg 13 | . 28 18 4 Device 1 | . . . 2 Storage 12 | . 14 14 11 Processor 5 | . . . 9 Energy Gun 4 | . 14 2 . Ballistic Gun 4 | . 14 5 . Peak Build Rating 12 | 6 6 6 12 Average Rating 6 | 4 6 3 7 On Entrance 3 | . 6 6 2 Avg Prop Armor Cover (%) . | . . . . Naked Turns . | . . . . Heaviest Build 14 | 14 14 10 12 Greatest Support 20 | 20 20 10 10 Greatest Overweight (x) 1 | . . . 1 Average Overweight (x) . | . . . . Largest Inventory Capacity 8 | 8 8 8 8 Average Capacity 7 | 7 8 8 8 Most Carried 8 | 2 4 4 8 Average Carried 4 | . 2 3 5 Final Capacity 8 | 8 8 8 8 Final Carried 5 | 2 4 3 5 Class Distribution -------------------- 100% | Mutant Dominant Class ---------------- Mutant | -10/Materials Mutant | -10/Mines Mutant | -9/Materials Resources | -11 -10 -10 -9 ----------- Run | Yrd Mat Min Mat Matter Collected 236 | 183 47 . 6 Remotely . | . . . . Salvage Created 93 | . 47 46 . Parts 6 | . 2 4 . Haulers Intercepted . | . . . . Recyclers Shooed 1 | . . . 1 Parts Field Recycled . | . . . . Retrieved Matter . | . . . . Parts Self-Destructed . | . . . . Prevented . | . . . . Parts Restored . | . . . . Kills | -11 -10 -10 -9 ------- Run | Yrd Mat Min Mat Combat Hostiles Destroyed 7 | . 1 2 4 Melee 5 | . . 1 4 Guns 2 | . 1 1 . Classes Destroyed 2 | . 1 . 1 Swarmer 4 | . . . 4 Grunt 3 | . 1 2 . Best Kill Streak 2 | . 1 1 2 Combat Bots Only 2 | . 1 1 2 Max Kills in Single Turn 1 | . 1 1 1 Gunslinging . | . . . . Exploded . | . . . . Melee 1 | . . 1 1 Uniques/NPCs Destroyed . | . . . . Combat | -11 -10 -10 -9 -------- Run | Yrd Mat Min Mat Hostile Shots Fired 176 | . 7 40 129 Missed 44 | . 1 6 37 Hits 132 | . 6 34 92 Projectile 132 | . 6 34 92 Critical Strikes 2 | . . 2 . Damage Taken 1393 | . 63 525 805 Core 374 | . 11 105 258 Absorbed by Shields . | . . . . Core Remaining (%) 76 | 100 . 53 . Volleys Fired 36 | . 13 17 6 Largest 2 | . 2 2 1 Hottest 70 | . 70 70 45 Shots Fired 54 | . 26 22 6 Gun 54 | . 26 22 6 Cannon . | . . . . Launcher . | . . . . Special . | . . . . Kinetic 30 | . 13 17 . Thermal 18 | . 13 5 . Explosive . | . . . . Electromagnetic 6 | . . . 6 Robot Hit Streak 7 | . 7 5 3 Robot Miss Streak 3 | . 3 2 1 Penetration Max . | . . . . Secondary Targets . | . . . . Shots Hit Robots 34 | . 14 14 6 Core Hits 23 | . 3 7 13 Critical Kills . | . . . . Critical Parts Destroyed . | . . . . Critical Strikes . | . . . . Melee Attacks . | . . . . Impact . | . . . . Slashing . | . . . . Piercing . | . . . . Sneak Attacks . | . . . . Combat Hostiles . | . . . . Follow-up Attacks . | . . . . Damage Inflicted 632 | . 176 241 215 Guns 425 | . 176 187 62 Cannons . | . . . . Explosions . | . . . . Melee . | . . . . Ramming 207 | . . 54 153 Kinetic 239 | . 89 150 . Thermal 124 | . 87 37 . Explosive . | . . . . Electromagnetic 62 | . . . 62 Impact . | . . . . Slashing . | . . . . Piercing . | . . . . Highest Corruption . | . . . . Average Corruption . | . . . . Corruption Purged . | . . . . Corruption Blocked . | . . . . Overload Shots . | . . . . Overflow Damage 2 | . . 2 . Projectiles . | . . . . Explosions . | . . . . Melee 2 | . . 2 . Knockbacks . | . . . . Impact . | . . . . Kinetic . | . . . . Secondary . | . . . . Self-Inflicted Damage 5 | . . . 5 Shots . | . . . . Rammed 72 | . . . 72 Targets Rammed 121 | . . 25 96 Kicked 47 | . . 25 22 Crushed 2 | . . . 2 Highest Temperature 156 | . 90 156 13 Average Temperature 50 | . 27 83 6 Received Heat Transfer 399 | . 36 327 36 Siege Activations . | . . . . Martial Activations . | . . . . Shielding Activations . | . . . . Robots Disrupted . | . . . . Combat Hostiles . | . . . . Robots Corrupted . | . . . . Combat Hostiles . | . . . . Parts Fried . | . . . . Impact Corruptions 1 | . . 1 . Robots Melted . | . . . . Combat Hostiles . | . . . . Parts Melted . | . . . . Heat Transferred 370 | . 259 111 . Parts Sabotaged . | . . . . Parts Stolen . | . . . . Parts Stripped . | . . . . Power Chain Reactions . | . . . . Alert | -11 -10 -10 -9 ------- Run | Yrd Mat Min Mat Maximum Alert Level . | . . . . Low Security (%) 100 | 100 100 100 100 Level 1 . | . . . . Level 2 . | . . . . Level 3 . | . . . . Level 4 . | . . . . Level 5 . | . . . . High Security . | . . . . Max Security . | . . . . Peak Influence 30 | . 30 30 30 Initial 7 | . . . 7 Average 6 | . 10 12 4 Influence Increases 204 | . 49 65 90 Destroy 0b10 Robot/C 140 | . 20 40 80 Destroy Leader 30 | . 10 10 10 Successful Hack 19 | . 19 . . Disable Machine 15 | . . 15 . Influence Decreases 204 | . 49 45 110 Entered New Map 13 | . . . 13 Time Decay 146 | . 49 20 77 Lost Part 45 | . . 25 20 Squads Dispatched 2 | . 2 . . Investigation 1 | . 1 . . Extermination . | . . . . Reinforcement 1 | . 1 . . Assault . | . . . . Garrison . | . . . . Intercept . | . . . . Searches Triggered . | . . . . Construction Impeded . | . . . . Haulers Reinforced . | . . . . Active Scanning Responses . | . . . . Cargo Convoy Interrupts . | . . . . Stealth | -11 -10 -10 -9 --------- Run | Yrd Mat Min Mat Distress Signals 1 | . 1 . . Communications Jammed . | . . . . Distress Signals . | . . . . Times Spotted 13 | . 6 2 5 Peak Tracking Total 4 | . 3 2 4 Tactical Retreats . | . . . . Traps | -11 -10 -10 -9 ------- Run | Yrd Mat Min Mat Traps Triggered 1 | . 1 . . Indirectly . | . . . . Trap Hack Attempts . | . . . . Triggered . | . . . . Disarmed . | . . . . Reprogrammed . | . . . . Reused . | . . . . Traps Extracted . | . . . . Installed . | . . . . Triggered . | . . . . Machines | -11 -10 -10 -9 ---------- Run | Yrd Mat Min Mat Machines Disabled 1 | . . 1 . Max in Single Turn 1 | . . 1 . Machines Repaired . | . . . . Machines Dismantled . | . . . . Machines Sabotaged . | . . . . Overloaded Fab Kills . | . . . . Hacking | -11 -10 -10 -9 --------- Run | Yrd Mat Min Mat Machines Accessed 3 | . 3 . . Terminals 3 | . 3 . . Fabricators . | . . . . Repair Stations . | . . . . Recycling Units . | . . . . Scanalyzers . | . . . . Garrison Access . | . . . . Total Hacks 4 | . 4 . . Successful 3 | . 3 . . Failed 1 | . 1 . . Catastrophic . | . . . . Database Lockouts . | . . . . Manual 5 | . 5 . . Terminals 4 | . 4 . . Fabricators . | . . . . Repair Stations . | . . . . Recycling Units . | . . . . Scanalyzers . | . . . . Garrison Access . | . . . . Terminal Hacks . | . . . . Fabricator Hacks . | . . . . Repair Station Hacks . | . . . . Recycling Unit Hacks . | . . . . Scanalyzer . | . . . . Garrison Access Hacks . | . . . . Unauthorized Hacks 3 | . 3 . . Terminals 3 | . 3 . . Botnet 3 | . 3 . . Fabricators . | . . . . Repair Stations . | . . . . Recycling Units . | . . . . Scanalyzers . | . . . . Garrison Access . | . . . . Data Cores Recovered . | . . . . Used . | . . . . Hacking Detections 2 | . 2 . . Full Trace Events . | . . . . Feedback Events . | . . . . Feedback Blocked . | . . . . Robot Schematics Acquired . | . . . . Robots Built . | . . . . Authchips . | . . . . Time . | . . . . Total Robot Build Rating . | . . . . Part Schematics Acquired . | . . . . Parts Built . | . . . . Authchips . | . . . . Time . | . . . . Total Part Build Rating . | . . . . Part Studies Acquired . | . . . . Parts Repaired . | . . . . Time . | . . . . Parts Recycled . | . . . . Recycled Matter . | . . . . Retrieved Matter . | . . . . Retrieved Components . | . . . . Parts Scanalyzed . | . . . . Part Schematics Acquired . | . . . . Parts Damaged . | . . . . Bothacking | -11 -10 -10 -9 ------------ Run | Yrd Mat Min Mat Used RIF Installer . | . . . . Robots Hacked . | . . . . Non-combat . | . . . . Combat . | . . . . Robot Hacks Applied . | . . . . Relay Couplers Released . | . . . . Fabnet Peak Effective % . | . . . . Robots Rewired . | . . . . Allies Hacked . | . . . . Hacks Repelled . | . . . . Allies | -11 -10 -10 -9 -------- Run | Yrd Mat Min Mat Total Allies . | . . . . Largest Group . | . . . . Highest-Rated Group . | . . . . Highest-Rated Ally . | . . . . Total Orders . | . . . . Ally Attacks . | . . . . Total Damage . | . . . . Kills . | . . . . Allies Corrupted . | . . . . Allies Melted . | . . . . Intel | -11 -10 -10 -9 ------- Run | Yrd Mat Min Mat Active Infowar (turns) 26 | . . . 26 ECM 26 | . . . 26 Robot Analysis Total . | . . . . Derelict Logs Recovered . | . . . . Drone Launches . | . . . . Drone Recoveries . | . . . . Exploration | -11 -10 -10 -9 ------------- Run | Yrd Mat Min Mat Turns Passed 606 | 53 147 92 314 Spaces Moved 269 | 37 89 19 124 Core 49 | 3 . . 46 Treads . | . . . . Legs 220 | 34 89 19 78 Wheels . | . . . . Hover . | . . . . Flight . | . . . . Fastest Speed 50 | 50 120 120 100 Average Speed 116 | 114 120 120 114 Slowest Speed 190 | 120 120 120 190 Overloaded Moves . | . . . . Propulsion Burnouts . | . . . . Robots Hopped . | . . . . Potential Cave-ins . | . . . . Cave-ins Triggered . | . . . . Exploration Rate (%) 11 | 4 23 7 13 Regions Visited 3 Branch Regions 1 Pre-discovered Areas . | . . . . Known Exits Taken . | . . . . Unknown Exits Taken 3 | 1 1 1 . Scrap Searched . | . . . . Spaces Dug . | . . . . Terrain Destroyed . | . . . . Melee . | . . . . Projectile . | . . . . AOE . | . . . . Terrain Rammed . | . . . . Walls Destroyed . | . . . . Machines Disabled . | . . . . Actions | -11 -10 -10 -9 --------- Run | Yrd Mat Min Mat Total 451 | 44 103 61 243 Wait 3 | . . . 3 Move 266 | 36 88 18 124 Hop . | . . . . Pick Up 9 | 2 2 . 5 Fast Attach 11 | 6 . . 5 Attach 4 | . . 1 3 Detach . | . . . . Swap . | . . . . Drop 1 | . . . 1 Fire 36 | . 13 17 6 Melee . | . . . . Ram 7 | . . . 7 Kick 47 | . . 25 22 Crush 67 | . . . 67 Escape Stasis . | . . . . Rewire . | . . . . Trap . | . . . . Miscellaneous . | . . . . Route ------- -11/Scrapyard -10/Materials -10/Mines -9/Materials History --------- Turn | Location | Event 4 | -11/Scrapyard | Discovered new exit (range 16) 54 | -11/Scrapyard | Entered Materials 165 | -10/Materials | Discovered new exit (range 16) 201 | -10/Materials | Entered Mines 212 | -10/Mines | Met a Derelict bent on vengeance 286 | -10/Mines | Discovered new exit (range 6) 293 | -10/Mines | Entered Materials 293 | -9/Materials | Evolved 2 slots: Propulsion x1, Utility x1 294 | -9/Materials | Lost 5 parts (1p2n2w) 304 | -9/Materials | Build established: Mutant 531 | -9/Materials | Core integrity fell below 50% 570 | -9/Materials | Lost 3 parts (1p2n) 607 | -9/Materials | Self-destructed Last Messages --------------- 00430_ Acquired 4 matter. 00431_ Slammed into S-10 Pest. 00432_ Acquired 2 matter. 00432_ Crushed S-10 Pest. 00432_ S-10 Pest destroyed. 00434_ Slammed into S-10 Pest. 00484_ Crushed S-10 Pest. 00484_ S-10 Pest destroyed. 00487_ Slammed into S-10 Pest. 00502_ Lgt. Nuclear Core destroyed. 00502_ Slammed into S-10 Pest. 00520_ Lgt. Treads destroyed. 00521_ Slammed into S-10 Pest. 00539_ Lgt. Treads destroyed. 00540_ Slammed into S-10 Pest. 00545_ Destabilizing: Core damaged (-16). 00546_ Slammed into S-10 Pest. 00546_ S-10 Pest destroyed. 00593_ Acquired EM Shotgun. 00607_ EM Shotgun destroyed. Map ----- +----------------------------------------------------+ | ?????????????????????# !#??????????????? | | ?????????????????????# """ """ #??????????????? | | ?????????????######### """ """ #??????????????? | | ?????????????#% + """ """ #??????????????? | | ??######?????#%####### #??????????????? | | ?##!!!!##????#%#?????#+#####+####### #?????????? | | ?#!%%% !#????#%#?????# #??# ?????? | | ?#%%% #????#%####### #### ##### #?????????? | | ##%%% %######% #?????????????????? | | %% %%% % #?######??????????? | | % %%%%%% % #?""" #??????????? | | % %%% %%%%%####### # """ #??????????? | | ###% % % %%%% #?????# # """ #??????????? | | #%% %##### #?????+ + #??????????? | | + % #???# #?????# # #??????????? | | " ######%#???# #?????# #! #??????????? | | #????# #???# #?????# ##### ###?######??????????? | | #????# #???# #?????# ????# #???????????????????? | | #????# #???# #?????# ????# #???????????????????? | | ###????# #???# #?????? ????# #???????????????????? | | ???????# #???# #???????????# #???????????????????? | | ???????# #???# #???????????# #???????????????????? | | ???????# #?### ####?##+#####+#???????????????????? | | ???????# #?# #?# #???????????????????? | | ???????? ??# !!#?#""" #???????????????????? | | ???????? ??# !!#?#"R @ #???????????????????? | | ???????? ??########?#""" #???????????????????? | | ???????? ???????????# Y +???????????????????? | | ???????? ??????????# """ #???????????????????? | | ???????? ??????????## """ #???????????????????? | | ???????? ???????????# """ #???????????????????? | | ????????????????????# = #???????????????????? | | ????????????????????##########???????????????????? | | ?????????????????????????????????????????????????? | | ?????????????????????????????????????????????????? | | ?????????????????????????????????????????????????? | | ?????????????????????????????????????????????????? | | ?????????????????????????????????????????????????? | | ?????????????????????????????????????????????????? | | ?????????????????????????????????????????????????? | | ?????????????????????????????????????????????????? | | ?????????????????????????????????????????????????? | | ?????????????????????????????????????????????????? | | ?????????????????????????????????????????????????? | | ?????????????????????????????????????????????????? | | ?????????????????????????????????????????????????? | | ?????????????????????????????????????????????????? | | ?????????????????????????????????????????????????? | | ?????????????????????????????????????????????????? | | ?????????????????????????????????????????????????? | +----------------------------------------------------+ Best States ------------- Heat Dissipation 28 Energy Generation 14 Energy Capacity 250 Matter Stores 300 Matter Capacity 300 Sight Range 16 Terrain Scan Density 10 ECM Strength 1 Evasion (%) 55 Melee Accuracy 10 Recoil Reduction 2 Item Schematics ----------------- None Robot Schematics ------------------ None Fabricated ------------ Nothing Repaired ---------- Nothing Studied --------- None Alien Tech Used ----------------- None Achievements -------------- None Challenges ------------ None Game ------ Seed BoreMicrodissipatorHumpback Manual? 0 Play Time 00:09:18 Cumulative 65.3 hours Start 2025.12.03 @ 18:24:46 End 2025.12.03 @ 18:33:13 Sessions 1 Manual Loads 0 Difficulty Rogue Special Mode None Game No. 43 Rogue 43 Adventurer 0 Explorer 0 Win Type - Total 0 Types 0/0/0/0/0/0/0/0/0/0 Lore% 23 Gallery% 32 Achievement% 26 Wizard Run 0 Options --------- Layout 1 ASCII 0 Keyboard 0 Movement Numpad Keybinds 0 Fullscreen 1 Font 24/Smallcaps Map View 50x35 Zoom Use 0% Tactical HUD 1 Map Filters NONE Filters NONE Steam 1 RUN: d980af1b-e120-4f0c-873e-6feac6102231